fUST/lending_fUST_20260118
["ID","MTS","AMOUNT","RATE_DAILY","PERIOD"]
[402514686,1768692639815,-1325.75,0.00013698,2]
[402514687,1768692639825,-1325.75,0.00013698,2]
[402514688,1768692639837,-1325.75,0.00013698,2]
[402514689,1768692639847,-1325.75,0.00013698,2]
[402514690,1768692639857,-1325.75,0.00013698,2]
[402514691,1768692639868,-1325.75,0.00013698,2]
[402514692,1768692639878,-1325.75,0.00013698,2]
[402514693,1768692639888,-1325.75,0.00013698,2]
[402514694,1768692639898,-1325.75,0.00013698,2]
[402514695,1768692639908,-1325.75,0.00013698,2]
[402514696,1768692639918,-1325.75,0.00013698,2]
[402514697,1768692639927,-1325.75,0.00013698,2]
[402514698,1768692639937,-1325.75,0.00013698,2]
[402514699,1768692639947,-1325.75,0.00013698,2]
[402514700,1768692639957,-1325.75,0.00013698,2]
[402514701,1768692639968,-1325.75,0.00013698,2]
[402514702,1768692639978,-1325.75,0.00013698,2]
[402514703,1768692639988,-1325.75,0.00013698,2]
[402514704,1768692639998,-1325.75,0.00013698,2]
[402514705,1768692640009,-1325.75,0.00013698,2]
[402514707,1768692640019,-1325.75,0.00013698,2]
[402514708,1768692640030,-1325.75,0.00013698,2]
[402514709,1768692640040,-1325.83547327,0.00013698,2]
[402514710,1768692640051,-500.0,0.00013698,2]
[402514711,1768692640062,-500.0,0.00013698,2]
[402514712,1768692640072,-275.23827501,0.00013698,2]
[402514713,1768692640085,-500.0,0.00013698,2]
[402514714,1768692640095,-500.0,0.00013698,2]
[402514715,1768692640106,-500.0,0.00013698,2]
[402514716,1768692640116,-500.0,0.00013698,2]
[402514717,1768692640127,-500.0,0.00013698,2]
[402514718,1768692640138,-500.0,0.00013698,2]
[402514719,1768692640148,-500.0,0.00013698,2]
[402514720,1768692640161,-589.78946072,0.00013698,2]
[402514721,1768692640171,-972.15,0.00013698,2]
[402514722,1768692640181,-972.15,0.00013698,2]
[402514723,1768692640192,-972.15,0.00013698,2]
[402514724,1768692640203,-972.15,0.00013698,2]
[402514725,1768692640213,-972.15,0.00013698,2]
[402514726,1768692640224,-972.15,0.00013698,2]
[402514727,1768692640235,-972.15,0.00013698,2]
[402514728,1768692640245,-972.15,0.00013698,2]
[402514729,1768692640255,-972.15,0.00013698,2]
[402514730,1768692640266,-972.15,0.00013698,2]
[402514731,1768692640277,-972.15,0.00013698,2]
[402514733,1768692640287,-972.15,0.00013698,2]
[402514734,1768692640298,-972.15,0.00013698,2]
[402514735,1768692640309,-972.15,0.00013698,2]
[402514736,1768692640319,-972.15,0.00013698,2]
[402514737,1768692640329,-972.15,0.00013698,2]
[402514738,1768692640339,-972.15,0.00013698,2]
[402514739,1768692640350,-972.15,0.00013698,2]
[402514740,1768692640360,-972.15,0.00013698,2]
[402514741,1768692640371,-972.15,0.00013698,2]
[402514742,1768692640381,-972.15,0.00013698,2]
[402514744,1768692640392,-972.15,0.00013698,2]
[402514746,1768692640402,-972.15,0.00013698,2]
[402514748,1768692640412,-972.31705445,0.00013698,2]
[402514750,1768692640422,-500.0,0.00013698,2]
[402514752,1768692640434,-500.0,0.00013698,2]
[402514754,1768692640444,-500.0,0.00013698,2]
[402514756,1768692640454,-500.0,0.00013698,2]
[402514758,1768692640464,-500.0,0.00013698,2]
[402514760,1768692640474,-500.0,0.00013698,2]
[402514762,1768692640485,-500.0,0.00013698,2]
[402514764,1768692640495,-500.0,0.00013698,2]
[402514766,1768692640505,-204.90208499,0.00013698,2]
[402514768,1768692640516,-500.0,0.00013698,2]
[402514770,1768692640527,-500.0,0.00013698,2]
[402514772,1768692640538,-500.0,0.00013698,2]
[402514774,1768692640548,-500.0,0.00013698,2]
[402514775,1768692640558,-500.0,0.00013698,2]
[402514777,1768692640568,-500.0,0.00013698,2]
[402514779,1768692640579,-500.0,0.00013698,2]
[402514781,1768692640589,-500.0,0.00013698,2]
[402514783,1768692640599,-500.0,0.00013698,2]
[402514785,1768692640609,-500.0,0.00013698,2]
[402514787,1768692640619,-500.0,0.00013698,2]
[402514789,1768692640628,-500.0,0.00013698,2]
[402514791,1768692640639,-134320.3669689,0.00013699,2]
[402514793,1768692640649,-1051.300421,0.00013699,2]
[402514795,1768692640659,-500.0,0.00013699,2]
[402514797,1768692640669,-500.0,0.00013699,2]
[402514799,1768692640678,-500.0,0.00013699,2]
[402514801,1768692640688,-587.52830239,0.00013699,2]
[402514804,1768692640698,-500.0,0.00013699,2]
[402514806,1768692640709,-310.63775509,0.00013699,2]
[402514808,1768692640719,-500.0,0.00013699,2]
[402514810,1768692640729,-500.0,0.00013699,2]
[402514812,1768692640739,-500.0,0.00013699,2]
[402514814,1768692640749,-238.2,0.00013699,2]
[402514816,1768692640759,-158.0,0.00013699,2]
[402514818,1768692640769,-160.0,0.00013699,2]
[402514820,1768692640779,-500.0,0.00013699,2]
[402514822,1768692640789,-500.0,0.00013699,2]
[402514824,1768692640800,-500.0,0.00013699,2]
[402514826,1768692640810,-160.0,0.00013699,2]
[402514828,1768692640820,-500.0,0.00013699,2]
[402514830,1768692640830,-238.0,0.00013699,2]
[402514832,1768692640840,-158.0,0.00013699,2]
[402514834,1768692640850,-431.73453214,0.00013699,2]
[402514836,1768692640860,-500.0,0.00013699,2]
[402514838,1768692640870,-500.0,0.00013699,2]
[402514840,1768692640880,-500.0,0.00013699,2]
[402514843,1768692640890,-500.0,0.00013699,2]
[402514845,1768692640901,-500.0,0.00013699,2]
[402514847,1768692640911,-250.52997418,0.00013699,2]
[402514849,1768692640921,-500.0,0.00013699,2]
[402514851,1768692640931,-500.0,0.00013699,2]
[402514853,1768692640941,-500.0,0.00013699,2]
[402514855,1768692640951,-500.0,0.00013699,2]
[402514857,1768692640962,-500.0,0.00013699,2]
[402514859,1768692640972,-500.0,0.00013699,2]
[402514861,1768692640982,-500.0,0.00013699,2]
[402514863,1768692640992,-158.2,0.00013699,2]
[402514865,1768692641003,-500.0,0.00013699,2]
[402514867,1768692641013,-500.0,0.00013699,2]
[402514869,1768692641023,-500.0,0.00013699,2]
[402514871,1768692641033,-207.07964308,0.00013699,2]
[402514873,1768692641043,-420.0,0.00013778,2]
[402514875,1768692641053,-1000.0,0.00013821,2]
[402514877,1768692641063,-1000.85139614,0.00013821,2]
[402514879,1768692641073,-1000.0,0.00013821,2]
[402514881,1768692641086,-1000.0,0.00013821,2]
[402514883,1768692641097,-1000.0,0.00013821,2]
[402514885,1768692641107,-1000.0,0.00013821,2]
[402514887,1768692641118,-577.86190151,0.00013821,2]
[402514889,1768692641129,-1000.0,0.00013821,2]
[402514891,1768692641139,-1000.0,0.00013821,2]
[402514893,1768692641151,-1000.0,0.00013821,2]
[402514895,1768692641162,-214.90304718,0.00013821,2]
[402514897,1768692641172,-1000.0,0.00013821,2]
[402514899,1768692641183,-1000.0,0.00013821,2]
[402514901,1768692641194,-1000.0,0.00013821,2]
[402514928,1768692641463,-154.30188776,0.00013821,2]
[402514931,1768692641482,-200.0,0.00013993,2]
[402514933,1768692641492,-500.0,0.00013993,2]
[402514935,1768692641502,-500.0,0.00013993,2]
[402514937,1768692641512,-100000.0,0.00014006,2]
[402514939,1768692641522,-269.96129392,0.00014067,7]
[402514941,1768692641531,-500.0,0.0001413,2]
[402514943,1768692641540,-500.0,0.0001413,2]
[402514945,1768692641549,-600.0,0.00014221,2]
[402514946,1768692641559,-500.85672121,0.00014247,2]
[402514948,1768692641568,-1000.0,0.00014247,2]
[402514950,1768692641577,-1000.0,0.00014247,2]
[402514952,1768692641587,-1000.0,0.00014247,2]
[402514954,1768692641597,-327.60308577,0.00014247,2]
[402514956,1768692641606,-1000.0,0.00014247,2]
[402514958,1768692641616,-1000.0,0.00014247,2]
[402514960,1768692641625,-186.7596,0.00014247,2]
[402514962,1768692641635,-500.0,0.00014247,2]
[402514964,1768692641646,-250.0,0.00014247,2]
[402514966,1768692641655,-1002.84499725,0.00014247,2]
[402514968,1768692641665,-1140.95571878,0.00014247,2]
[402514970,1768692641675,-505.35037186,0.00014247,2]
[402514972,1768692641684,-920.73215922,0.00014247,2]
[402514974,1768692641693,-505.85156425,0.00014247,2]
[402514976,1768692641703,-1000.0,0.00014247,2]
[402514978,1768692641712,-938.8879538,0.00014247,2]
[402514980,1768692641722,-1000.0,0.00014247,2]
[402514982,1768692641731,-1000.0,0.00014247,2]
[402514984,1768692641741,-1097.74982003,0.00014247,2]
[402514986,1768692641750,-666.91973232,0.00014247,2]
[402514988,1768692641761,-1148.13731473,0.00014247,2]
[402514990,1768692641770,-1019.10615049,0.00014247,2]
[402514992,1768692641779,-502.90945713,0.00014247,2]
[402514994,1768692641789,-500.43334725,0.00014247,2]
[402514995,1768692641798,-1000.0,0.00014247,2]
[402514998,1768692641809,-550.0,0.00014267,2]
[402514999,1768692641819,-600.0,0.00014267,2]
[402515001,1768692641830,-239.92258785,0.00014286,7]
[402515003,1768692641840,-219.66812896,0.00014305,2]
[402515005,1768692641850,-970.89070314,0.00014368,2]
[402515007,1768692641860,-1504.04282277,0.00014368,2]
[402515009,1768692641870,-1500.0,0.00014368,2]
[402515011,1768692641880,-1500.0,0.00014368,2]
[402515013,1768692641889,-1500.0,0.00014368,2]
[402515015,1768692641899,-1500.0,0.00014368,2]
[402515017,1768692641909,-1500.0,0.00014368,2]
[402515019,1768692641918,-1500.0,0.00014368,2]
[402515021,1768692641929,-1500.0,0.00014368,2]
[402515023,1768692641939,-1500.0,0.00014368,2]
[402515025,1768692641949,-3393.792561,0.00014506,2]
[402515027,1768692641959,-5000.0,0.0001451,2]
[402515029,1768692641969,-239.92258785,0.0001456,7]
[402515031,1768692641979,-900.0,0.00014768,2]
[402515033,1768692641989,-1000.0,0.00014795,2]
[402515035,1768692641999,-1500.0,0.00014795,2]
[402515037,1768692642008,-160.83132082,0.00014795,2]
[402515039,1768692642018,-1500.0,0.00014795,2]
[402515041,1768692642027,-993.74297815,0.00014795,2]
[402515043,1768692642039,-201.38164885,0.00014795,2]
[402515045,1768692642049,-1500.0,0.00014795,2]
[402515047,1768692642060,-1500.0,0.00014795,2]
[402515049,1768692642070,-1500.0,0.00014795,2]
[402515051,1768692642083,-502.31117812,0.00014795,2]
[402515053,1768692642093,-199.93548987,0.00014889,7]
[402515055,1768692642103,-2000.0,0.00014916,2]
[402515057,1768692642112,-504.15629489,0.00014916,2]
[402515059,1768692642122,-1706.44598023,0.00014916,2]
[402515061,1768692642132,-2000.0,0.00014916,2]
[402515063,1768692642141,-2000.0,0.00014916,2]
[402515065,1768692642151,-1500.0,0.00014916,2]
[402515067,1768692642163,-180.10446059,0.0001494,2]
[402515069,1768692642173,-157.03592371,0.00014946,2]
[402515070,1768692642183,-1146.48475072,0.00014993,2]
[402515072,1768692642193,-10000.0,0.00015057,2]
[402515075,1768692642203,-1308.98,0.00015057,2]
[402515076,1768692642213,-10000.0,0.00015114,2]
[402515078,1768692642223,-10000.0,0.00015114,2]
[402515080,1768692642235,-10000.0,0.00015114,2]
[402515082,1768692642245,-2317.5,0.00015114,2]
[402515084,1768692642255,-587.0,0.00015117,2]
[402515086,1768692642265,-12017.07802031,0.00015204,2]
[402515088,1768692642275,-258.0,0.00015304,2]
[402515090,1768692642285,-1200.0,0.00015316,2]
[402515092,1768692642295,-2000.0,0.00015342,2]
[402515094,1768692642304,-2000.0,0.00015342,2]
[402515096,1768692642315,-2000.0,0.00015342,2]
[402515098,1768692642325,-2000.0,0.00015342,2]
[402515100,1768692642335,-157.0359237,0.00015408,2]
[402515102,1768692642345,-1041.66666667,0.00015442,2]
[402515104,1768692642355,-160.0,0.00015443,2]
[402515106,1768692642365,-2500.0,0.00015464,2]
[402515108,1768692642375,-2500.0,0.00015464,2]
[402515110,1768692642385,-258.0,0.00015484,2]
[402515112,1768692642395,-258.0,0.00015486,2]
[402515114,1768692642404,-258.0,0.00015554,2]
[402515116,1768692642414,-258.0,0.00015613,2]
[402515118,1768692642424,-1957.856,0.00015617,2]
[402515120,1768692642434,-151.0,0.00015617,2]
[402515122,1768692642444,-250.0,0.00015617,2]
[402515124,1768692642454,-250.0,0.00015617,2]
[402515126,1768692642463,-162.380719,0.00015617,2]
[402515128,1768692642473,-250.0,0.00015617,2]
[402515130,1768692642483,-250.0,0.00015617,2]
[402515132,1768692642493,-300.73,0.00015617,2]
[402515133,1768692642503,-162.380719,0.00015617,2]
[402515136,1768692642513,-2000.0,0.00015617,2]
[402515137,1768692642523,-2000.0,0.00015617,2]
[402515139,1768692642533,-2000.0,0.00015617,2]
[402515141,1768692642543,-2000.0,0.00015617,2]
[402515143,1768692642552,-2000.0,0.00015617,2]
[402515145,1768692642562,-2000.0,0.00015617,2]
[402515148,1768692642571,-2000.0,0.00015617,2]
[402515149,1768692642581,-151.0,0.00015617,2]
[402515152,1768692642592,-450.72847672,0.00015617,2]
[402515187,1768692642930,-1549.27152328,0.00015617,2]
[402515189,1768692642939,-151.0,0.00015617,2]
[402515191,1768692642948,-2000.0,0.00015617,2]
[402515193,1768692642958,-201.18700456,0.00015617,2]
[402515195,1768692642968,-162.380719,0.00015617,2]
[402515197,1768692642978,-2000.0,0.00015617,2]
[402515199,1768692642988,-168.3888056,0.00015617,2]
[402515201,1768692642997,-151.0,0.00015617,2]
[402515203,1768692643007,-596.11302201,0.00015617,2]
[402515205,1768692643018,-1403.88697799,0.00015617,2]
[402515207,1768692643027,-174.61919141,0.00015617,2]
[402515209,1768692643036,-151.0,0.00015617,2]
[402515211,1768692643046,-1277.18814869,0.00015617,2]
[402515213,1768692643057,-722.81185131,0.00015617,2]
[402515215,1768692643067,-181.08010149,0.00015617,2]
[402515218,1768692643078,-2000.0,0.00015617,2]
[402515220,1768692643092,-187.78006525,0.00015617,2]
[402515222,1768692643101,-2000.0,0.00015617,2]
[402515224,1768692643111,-194.72792766,0.00015617,2]
[402515225,1768692643122,-2000.0,0.00015617,2]
[402515228,1768692643132,-201.93286099,0.00015617,2]
[402515229,1768692643142,-2000.0,0.00015617,2]
[402515231,1768692643152,-209.40437684,0.00015617,2]
[402515233,1768692643163,-2000.0,0.00015617,2]
[402515235,1768692643172,-217.15233878,0.00015617,2]
[402515237,1768692643182,-225.18697532,0.00015617,2]
[402515239,1768692643191,-500.0,0.00015617,2]
[402515241,1768692643200,-2000.0,0.00015617,2]
[402515243,1768692643210,-233.51889341,0.00015617,2]
[402515245,1768692643219,-500.0,0.00015617,2]
[402515247,1768692643230,-242.15909246,0.00015617,2]
[402515249,1768692643240,-74.29145362,0.00015617,2]
[402515252,1768692643255,-425.70854638,0.00015617,2]
[402515254,1768692643264,-251.11897888,0.00015617,2]
[402515256,1768692643274,-500.0,0.00015617,2]
[402515258,1768692643283,-445.202766,0.00015617,2]
[402515259,1768692643292,-260.4103811,0.00015617,2]
[402515262,1768692643302,-500.0,0.00015617,2]
[402515263,1768692643311,-270.0455652,0.00015617,2]
[402515264,1768692643320,-500.0,0.00015617,2]
[402515265,1768692643330,-280.03725112,0.00015617,2]
[402515266,1768692643340,-500.0,0.00015617,2]
[402515267,1768692643349,-290.39862941,0.00015617,2]
[402515268,1768692643358,-500.0,0.00015617,2]
[402515269,1768692643367,-301.1433787,0.00015617,2]
[402515270,1768692643376,-500.0,0.00015617,2]
[402515271,1768692643386,-500.0,0.00015617,2]
[402515272,1768692643395,-2150.738,0.00015617,2]
[402515273,1768692643405,-500.0,0.00015617,2]
[402515274,1768692643414,-500.0,0.00015617,2]
[402515275,1768692643423,-500.0,0.00015617,2]
[402515276,1768692643432,-500.0,0.00015617,2]
[402515277,1768692643441,-500.0,0.00015617,2]
[402515278,1768692643451,-500.0,0.00015617,2]
[402515279,1768692643461,-500.0,0.00015617,2]
[402515280,1768692643470,-500.0,0.00015617,2]
[402515281,1768692643480,-258.0,0.00015625,2]
[402515282,1768692643489,-258.0,0.00015659,2]
[402515283,1768692643499,-2030.296672,0.00015672,2]
[402515284,1768692643508,-2105.41764886,0.00015727,2]
[402515285,1768692643517,-2183.31810187,0.00015782,2]
[402515286,1768692643528,-1146.48475072,0.0001579,2]
[402515287,1768692643537,-258.0,0.00015797,2]
[402515288,1768692643547,-2264.10087164,0.00015837,2]
[402515289,1768692643556,-903.86573033,0.00015864,2]
[402515290,1768692643565,-258.0,0.00015866,2]
[402515291,1768692643575,-258.0,0.00015882,2]
[402515292,1768692643584,-258.0,0.0001589,2]
[402515293,1768692643593,-3000.0,0.0001589,2]
[402515294,1768692643603,-1206.13735223,0.0001589,2]
[402515295,1768692643613,-2500.0,0.0001589,2]
[402515296,1768692643622,-2347.87260389,0.00015892,2]
[402515297,1768692643632,-258.0,0.00015933,2]
[402515298,1768692643642,-1108.5730946,0.00015947,2]
[402515299,1768692643651,-3000.0,0.00016012,2]
[402515301,1768692643662,-365.75212924,0.00016012,2]
[402515302,1768692643672,-258.0,0.00016114,2]
[402515303,1768692643681,-153.0,0.00016164,2]
[402515309,1768692643764,-168.3888056,0.00016165,2]
[402515311,1768692643773,-461.67526834,0.00016165,2]
[402515313,1768692643783,-2230.315306,0.00016165,2]
[402515315,1768692643791,-2816.29885395,0.00016208,2]
[402515317,1768692643801,-6330.33574896,0.00016208,2]
[402515319,1768692643810,-1877.88230572,0.00016208,2]
[402515321,1768692643819,-4225.23518786,0.00016208,2]
[402515323,1768692643827,-7511.52922287,0.00016208,2]
[402515325,1768692643837,-1450.39512006,0.00016208,2]
[402515327,1768692643846,-1793.96418539,0.00016208,2]
[402515329,1768692643855,-258.0,0.00016251,2]
[402515331,1768692643864,-258.0,0.00016269,2]
[402515333,1768692643873,-253.1768266,0.00016305,2]
[402515335,1768692643884,-176.7211808,0.00016339,2]
[402515337,1768692643893,-37530.4905832,0.00016339,2]
[402515339,1768692643902,-179.8432402,0.00016339,2]
[402515341,1768692643911,-7609.7355905,0.00016411,2]
[402515343,1768692643921,-258.0,0.00016413,2]
[402515345,1768692643929,-500.0,0.00016438,3]
[402515347,1768692643938,-500.0,0.00016438,3]
[402515349,1768692643948,-500.0,0.00016438,3]
[402515351,1768692643957,-500.0,0.00016438,3]
[402515353,1768692643966,-500.0,0.00016438,3]
[402515355,1768692643976,-554.19378487,0.00016438,3]
[402515357,1768692643985,-500.0,0.00016438,3]
[402515359,1768692643994,-500.0,0.00016438,3]
[402515361,1768692644003,-416.5457109,0.00016438,3]
[402515363,1768692644012,-500.41163079,0.00016438,3]
[402515365,1768692644022,-500.0,0.00016438,3]
[402515367,1768692644031,-500.0,0.00016438,3]
[402515369,1768692644040,-500.0,0.00016438,3]
[402515371,1768692644049,-500.0,0.00016438,3]
[402515373,1768692644058,-500.0,0.00016438,3]
[402515375,1768692644067,-500.0,0.00016438,3]
[402515377,1768692644077,-500.0,0.00016438,3]
[402515379,1768692644089,-172.631544,0.00016438,3]
[402515381,1768692644098,-500.0,0.00016438,3]
[402515383,1768692644107,-500.0,0.00016438,3]
[402515385,1768692644116,-500.0,0.00016438,3]
[402515387,1768692644126,-500.0,0.00016438,3]
[402515389,1768692644135,-500.0,0.00016438,3]
[402515391,1768692644144,-726.77,0.00016438,3]
[402515393,1768692644155,-500.0,0.00016438,3]
[402515395,1768692644164,-500.0,0.00016438,3]
[402515397,1768692644173,-500.0,0.00016438,3]
[402515399,1768692644182,-791.39,0.00016438,3]
[402515401,1768692644191,-500.0,0.00016438,3]
[402515403,1768692644201,-500.0,0.00016438,3]
[402515404,1768692644210,-500.0,0.00016438,3]
[402515405,1768692644219,-500.0,0.00016438,3]
[402515407,1768692644227,-535.27896173,0.00016438,3]
[402515409,1768692644237,-500.0,0.00016438,3]
[402515411,1768692644246,-500.0,0.00016438,3]
[402515413,1768692644255,-500.0,0.00016438,3]
[402515415,1768692644264,-500.0,0.00016438,3]
[402515417,1768692644273,-533.56,0.00016438,3]
[402515419,1768692644282,-500.0,0.00016438,3]
[402515421,1768692644292,-500.0,0.00016438,3]
[402515423,1768692644301,-500.0,0.00016438,3]
[402515425,1768692644312,-500.0,0.00016438,3]
[402515427,1768692644321,-500.0,0.00016438,3]
[402515428,1768692644330,-500.0,0.00016438,3]
[402515430,1768692644339,-500.0,0.00016438,3]
[402515432,1768692644349,-500.0,0.00016438,3]
[402515434,1768692644358,-500.0,0.00016438,3]
[402515437,1768692644368,-500.0,0.00016438,3]
[402515438,1768692644377,-500.0,0.00016438,3]
[402515440,1768692644386,-500.0,0.00016438,3]
[402515442,1768692644395,-500.0,0.00016438,3]
[402515444,1768692644404,-536.50517922,0.00016438,3]
[402515446,1768692644414,-557.26,0.00016438,3]
[402515448,1768692644423,-500.0,0.00016438,3]
[402515450,1768692644432,-500.0,0.00016438,3]
[402515452,1768692644442,-500.0,0.00016438,3]
[402515454,1768692644451,-500.0,0.00016438,3]
[402515456,1768692644460,-500.0,0.00016438,3]
[402515458,1768692644470,-500.0,0.00016438,3]
[402515460,1768692644479,-172.6105479,0.00016438,3]
[402515462,1768692644488,-500.0,0.00016438,3]
[402515464,1768692644497,-500.0,0.00016438,3]
[402515466,1768692644507,-823.73,0.00016438,3]
[402515468,1768692644515,-500.0,0.00016438,3]
[402515470,1768692644525,-500.0,0.00016438,3]
[402515472,1768692644533,-500.0,0.00016438,3]
[402515474,1768692644543,-500.0,0.00016438,3]
[402515476,1768692644552,-653.58,0.00016438,3]
[402515477,1768692644560,-500.0,0.00016438,3]
[402515479,1768692644570,-500.0,0.00016438,3]
[402515481,1768692644578,-519.77,0.00016438,3]
[402515483,1768692644588,-500.0,0.00016438,3]
[402515485,1768692644597,-500.0,0.00016438,3]
[402515487,1768692644606,-500.0,0.00016438,3]
[402515489,1768692644615,-500.0,0.00016438,3]
[402515490,1768692644624,-500.0,0.00016438,3]
[402515492,1768692644633,-500.0,0.00016438,3]
[402515494,1768692644643,-500.0,0.00016438,3]
[402515496,1768692644651,-500.0,0.00016438,3]
[402515498,1768692644660,-500.0,0.00016438,3]
[402515500,1768692644670,-500.0,0.00016438,3]
[402515501,1768692644679,-500.0,0.00016438,3]
[402515502,1768692644688,-500.0,0.00016438,3]
[402515503,1768692644698,-500.0,0.00016438,3]
[402515504,1768692644707,-500.0,0.00016438,3]
[402515505,1768692644716,-500.0,0.00016438,3]
[402515506,1768692644725,-500.0,0.00016438,3]
[402515507,1768692644734,-500.0,0.00016438,3]
[402515508,1768692644744,-744.64,0.00016438,3]
[402515509,1768692644753,-500.0,0.00016438,3]
[402515510,1768692644762,-512.12,0.00016438,3]
[402515511,1768692644772,-500.0,0.00016438,3]
[402515512,1768692644781,-572.08,0.00016438,3]
[402515513,1768692644791,-500.0,0.00016438,3]
[402515514,1768692644800,-500.0,0.00016438,3]
[402515515,1768692644809,-500.0,0.00016438,3]
[402515516,1768692644818,-500.0,0.00016438,3]
[402515517,1768692644827,-500.0,0.00016438,3]
[402515518,1768692644836,-500.0,0.00016438,3]
[402515519,1768692644845,-500.0,0.00016438,3]
[402515520,1768692644855,-500.0,0.00016438,3]
[402515521,1768692644865,-500.0,0.00016438,3]
[402515522,1768692644874,-500.0,0.00016438,3]
[402515523,1768692644883,-500.0,0.00016438,3]
[402515524,1768692644892,-622.64063856,0.00016438,3]
[402515525,1768692644902,-887.04,0.00016438,3]
[402515526,1768692644911,-500.0,0.00016438,3]
[402515527,1768692644920,-500.0,0.00016438,3]
[402515528,1768692644929,-500.0,0.00016438,3]
[402515529,1768692644938,-500.0,0.00016438,3]
[402515530,1768692644947,-934.44,0.00016438,3]
[402515531,1768692644957,-500.0,0.00016438,3]
[402515532,1768692644966,-500.0,0.00016438,3]
[402515533,1768692644976,-807.11,0.00016438,3]
[402515534,1768692644985,-500.0,0.00016438,3]
[402515535,1768692644995,-500.0,0.00016438,3]
[402515536,1768692645004,-500.0,0.00016438,3]
[402515537,1768692645013,-500.0,0.00016438,3]
[402515538,1768692645023,-500.0,0.00016438,3]
[402515539,1768692645032,-500.0,0.00016438,3]
[402515540,1768692645041,-511.27,0.00016438,3]
[402515541,1768692645051,-500.0,0.00016438,3]
[402515542,1768692645060,-500.0,0.00016438,3]
[402515543,1768692645068,-891.58,0.00016438,3]
[402515544,1768692645079,-500.0,0.00016438,3]
[402515545,1768692645091,-500.0,0.00016438,3]
[402515546,1768692645100,-500.0,0.00016438,3]
[402515547,1768692645110,-500.0,0.00016438,3]
[402515548,1768692645119,-500.0,0.00016438,3]
[402515549,1768692645129,-500.0,0.00016438,3]
[402515550,1768692645139,-500.0,0.00016438,3]
[402515551,1768692645148,-500.0,0.00016438,3]
[402515552,1768692645162,-500.0,0.00016438,3]
[402515553,1768692645172,-500.0,0.00016438,3]
[402515554,1768692645182,-756.95,0.00016438,3]
[402515555,1768692645191,-500.0,0.00016438,3]
[402515556,1768692645201,-500.0,0.00016438,3]
[402515557,1768692645211,-500.0,0.00016438,3]
[402515558,1768692645220,-500.0,0.00016438,3]
[402515559,1768692645230,-500.0,0.00016438,3]
[402515560,1768692645239,-500.0,0.00016438,3]
[402515561,1768692645248,-500.0,0.00016438,3]
[402515562,1768692645258,-500.0,0.00016438,3]
[402515563,1768692645267,-500.0,0.00016438,3]
[402515564,1768692645276,-500.0,0.00016438,3]
[402515565,1768692645285,-733.33,0.00016438,3]
[402515566,1768692645295,-500.0,0.00016438,3]
[402515567,1768692645304,-500.0,0.00016438,3]
[402515568,1768692645314,-500.0,0.00016438,3]
[402515569,1768692645323,-532.55606123,0.00016438,3]
[402515570,1768692645332,-500.0,0.00016438,3]
[402515571,1768692645341,-565.59190615,0.00016438,3]
[402515572,1768692645350,-500.0,0.00016438,3]
[402515574,1768692645359,-500.0,0.00016438,3]
[402515576,1768692645368,-533.68,0.00016438,3]
[402515578,1768692645377,-803.0,0.00016438,3]